bitfinex/quotes_SOLUSD_20240821
["timestamp","ask_amount","ask_price","bid_price","bid_amount"]
[1724241940642,40.4876,141.69,141.62,0.25098]
[1724241940840,6.13188281,141.68,141.62,0.25098]
[1724241941041,6.13188281,141.67,141.62,0.25098]
[1724241941219,6.13188281,141.66,141.62,0.25098]
[1724241941540,6.13188281,141.65,141.62,0.25098]
[1724241941753,13.43,141.68,141.62,0.25098]
[1724241941917,6.13215754,141.67,141.62,0.25098]
[1724241942107,6.13215754,141.66,141.62,0.25098]
[1724241942313,6.13215754,141.65,141.62,0.25098]
[1724241942533,13.43,141.68,141.62,0.25098]
[1724241942831,6.13202429,141.67,141.62,0.25098]
[1724241943041,6.13202429,141.66,141.62,0.25098]
[1724241943216,6.13202429,141.65,141.62,1.66290137]
[1724241943419,13.43,141.68,141.62,1.66290137]
[1724241943629,6.13202429,141.67,141.62,0.25098]
[1724241943828,6.13202429,141.66,141.62,0.25098]
[1724241944024,6.13202429,141.65,141.62,0.25098]
[1724241944222,13.43,141.68,141.62,0.25098]
[1724241944425,6.13195606,141.67,141.62,1.6629113]
[1724241944732,6.13195606,141.66,141.62,1.6629113]
[1724241944918,6.13195606,141.65,141.62,1.6629113]
[1724241945115,13.43,141.68,141.62,0.25098]
[1724241945320,6.13202635,141.67,141.62,0.25098]
[1724241945534,6.13202498,141.66,141.62,0.25098]
[1724241945737,6.13202498,141.65,141.62,0.25098]
[1724241945934,6.13202498,141.64,141.62,0.25098]
[1724241946137,13.43,141.68,141.62,0.25098]
[1724241946311,6.13189057,141.67,141.62,0.25098]
[1724241946513,13.43,141.68,141.62,0.25098]
[1724241946514,6.13189057,141.66,141.62,0.25098]
[1724241946751,6.13189057,141.65,141.62,0.25098]
[1724241946967,6.13189057,141.64,141.62,0.25098]
[1724241947247,6.13216282,141.64,141.62,0.25098]
[1724241947432,13.43,141.68,141.62,0.25098]
[1724241947639,6.13216076,141.67,141.62,0.25098]
[1724241947944,6.13216076,141.66,141.62,0.25098]
[1724241948146,6.13216076,141.65,141.62,0.25098]
[1724241948314,6.13216076,141.64,141.62,0.25098]
[1724241948517,13.43,141.68,141.62,0.25098]
[1724241948727,6.13185858,141.67,141.62,0.25098]
[1724241948927,6.13185858,141.66,141.62,0.25098]
[1724241949142,6.13185858,141.65,141.62,0.25098]
[1724241949447,6.13185858,141.64,141.62,0.25098]
[1724241949650,13.43,141.68,141.62,0.25098]
[1724241949852,6.13188783,141.67,141.62,0.25098]
[1724241950150,6.13188783,141.66,141.62,0.25098]
[1724241950350,6.13188783,141.65,141.62,0.25098]
[1724241950525,6.13188783,141.64,141.62,0.25098]
[1724241950737,13.43,141.68,141.62,0.25098]
[1724241950941,6.13185372,141.67,141.62,0.25098]
[1724241951265,6.13185372,141.66,141.62,0.25098]
[1724241951465,6.13185372,141.65,141.62,0.25098]
[1724241951634,6.13185372,141.64,141.62,0.25098]
[1724241951834,6.13185372,141.63,141.62,0.25098]
[1724241952955,6.13185372,141.63,141.62,1.66290912]
[1724241953569,6.13189126,141.63,141.62,1.66290912]
[1724241953759,27.0576,141.69,141.62,21.66284743]
[1724241953958,6.13161836,141.68,141.62,21.66284743]
[1724241954268,6.13161836,141.67,141.62,28.72394743]
[1724241954482,6.13161836,141.66,141.62,28.72394743]
[1724241954790,6.13116201,141.65,141.62,28.72394743]
[1724241955062,20.0,141.69,141.62,28.72394743]
[1724241955269,6.13113882,141.68,141.62,28.72394743]
[1724241955567,6.13113882,141.67,141.62,28.72394743]
[1724241955868,6.13113882,141.66,141.62,28.72394743]
[1724241956066,6.13113882,141.65,141.62,28.72394743]
[1724241956276,20.0,141.69,141.62,28.72394743]
[1724241956450,6.13114156,141.68,141.62,28.72394743]
[1724241956654,6.1311054,141.67,141.63,45.0]
[1724241956971,6.1311054,141.66,141.64,1.66271273]
[1724241957270,6.1311054,141.65,141.64,1.66271273]
[1724241960273,6.13127661,141.65,141.64,1.66271273]
[1724241960476,6.13127661,141.65,141.64,43.32539405]
[1724241960656,6.13127661,141.65,141.64,88.32539405]
[1724241961083,13.43,141.73,141.64,95.38509405]
[1724241961084,20.4859,141.73,141.64,95.38509405]
[1724241961249,6.13101391,141.72,141.65,45.0]
[1724241961451,20.4859,141.73,141.66,0.25098]
[1724241961452,6.13101391,141.71,141.66,0.25098]
[1724241961655,6.13101391,141.7,141.66,0.25098]
[1724241961872,6.13101391,141.69,141.66,0.25098]
[1724241962183,6.13101391,141.68,141.66,0.25098]
[1724241962386,6.13101391,141.67,141.66,0.25098]
[1724241962876,13.43,141.71,141.66,0.25098]
[1724241963066,6.13100423,141.7,141.67,0.12549]
[1724241963268,6.13100423,141.69,141.65,0.25098]
[1724241963470,13.43,141.71,141.65,0.25098]
[1724241963880,6.13100355,141.7,141.65,0.25098]
[1724241964185,6.13100355,141.69,141.65,0.25098]
[1724241964368,6.13100355,141.68,141.65,0.25098]
[1724241964566,6.13100355,141.67,141.65,0.25098]
[1724241964776,6.13100492,141.66,141.65,0.25098]
[1724241966487,20.4862,141.72,141.65,0.25098]
[1724241966679,6.13049126,141.71,141.65,0.25098]
[1724241966878,20.4862,141.72,141.65,0.25098]
[1724241967059,6.13048203,141.7,141.65,0.25098]
[1724241967255,6.13048203,141.69,141.65,0.25098]
[1724241967460,6.13048203,141.68,141.65,0.25098]
[1724241967690,20.4862,141.72,141.65,0.25098]
[1724241967871,6.13049069,141.71,141.65,0.25098]
[1724241968076,6.13049069,141.7,141.65,0.25098]
[1724241968268,6.13049069,141.69,141.65,0.25098]
[1724241968466,6.13048463,141.68,141.65,0.25098]
[1724241968787,6.13048463,141.67,141.65,0.25098]
[1724241968972,20.4862,141.72,141.65,0.25098]
[1724241969167,6.13048257,141.71,141.65,0.25098]
[1724241969364,6.13048257,141.7,141.65,0.25098]
[1724241969566,6.13048257,141.69,141.65,0.25098]
[1724241969767,6.13048257,141.68,141.65,0.25098]
[1724241969997,6.13048257,141.67,141.65,0.25098]
[1724241970186,20.4862,141.72,141.65,0.25098]
[1724241970569,20.4862,141.72,141.64,48.7224]
[1724241970570,20.4881,141.68,141.64,15.2729]
[1724241970774,13.43,141.68,141.61,22.4386]
[1724241971991,13.43,141.68,141.62,0.25098]
[1724241972888,7.0578,141.69,141.62,0.25098]
[1724241973085,6.13175815,141.68,141.62,72.31178]
[1724241973297,6.13175815,141.67,141.62,72.31178]
[1724241973499,6.13175815,141.66,141.62,65.25098]
[1724241973809,20.4873,141.7,141.62,65.25098]
[1724241974101,26.13151827,141.69,141.62,65.25098]
[1724241974305,6.13151827,141.68,141.62,65.25098]
[1724241974483,6.13151827,141.67,141.62,65.25098]
[1724241974682,6.13151827,141.66,141.62,65.25098]
[1724241974909,6.13151827,141.65,141.62,65.25098]
[1724241975108,20.0,141.69,141.62,65.25098]
[1724241975398,6.13157093,141.68,141.62,65.25098]
[1724241975605,6.13157093,141.67,141.62,65.25098]
[1724241975811,6.13157093,141.66,141.62,65.25098]
[1724241976104,6.13157093,141.65,141.62,65.25098]
[1724241976304,6.13157093,141.64,141.62,65.25098]
[1724241976497,27.0576,141.69,141.62,65.25098]
[1724241976674,6.13156728,141.68,141.62,65.25098]
[1724241976878,27.0576,141.69,141.62,65.25098]
[1724241977073,6.13156454,141.67,141.62,65.25098]
[1724241977400,27.0576,141.69,141.62,65.25098]
[1724241977401,6.13156454,141.66,141.62,65.25098]
[1724241977614,6.13156454,141.65,141.62,65.25098]
[1724241977780,27.0576,141.69,141.62,65.25098]
[1724241978107,6.13170738,141.68,141.62,65.25098]
[1724241978291,6.13170738,141.67,141.62,65.25098]
[1724241978591,6.13170738,141.66,141.62,65.25098]
[1724241978889,6.13170738,141.65,141.62,65.25098]
[1724241979087,27.0576,141.69,141.62,65.25098]
[1724241979285,6.13174149,141.68,141.62,65.25098]
[1724241979508,6.13174149,141.67,141.62,65.25098]
[1724241979693,6.13174149,141.66,141.62,65.25098]
[1724241979887,6.13174149,141.65,141.62,65.25098]
[1724241980091,6.13170738,141.64,141.62,65.25098]
[1724241980293,20.0,141.69,141.62,65.25098]
[1724241980497,6.1316554,141.68,141.62,65.25098]
[1724241980684,6.1316554,141.67,141.62,65.25098]
[1724241980896,6.13153486,141.66,141.62,65.25098]
[1724241981222,6.13153486,141.65,141.62,65.25098]
[1724241981404,20.0,141.69,141.62,65.25098]
[1724241981712,6.13148426,141.68,141.62,72.31208]
[1724241981913,6.13148426,141.67,141.63,8.47199599]
[1724241982222,6.13148426,141.66,141.65,16.0165]
[1724241982418,6.13148426,141.66,141.65,16.26748]
[1724241982613,7.0567,141.71,141.65,16.26748]
[1724241982923,7.0567,141.71,141.66,0.25098]
[1724241984119,6.13073757,141.7,141.66,0.25098]
[1724241984291,7.0567,141.71,141.66,0.25098]
[1724241984499,6.13073825,141.69,141.66,0.25098]
[1724241984795,7.0567,141.71,141.66,0.25098]
[1724241985388,20.4862,141.72,141.66,1.6625878]
[1724241985587,20.0,141.71,141.66,1.6625878]
[1724241985907,7.0557,141.73,141.66,7.9454878]
[1724241987214,33.43,141.74,141.67,45.0]
[1724241987215,40.4852,141.74,141.67,45.0]
[1724241987393,40.4852,141.74,141.68,0.25098]
[1724241995318,13.43,141.72,141.67,0.25098]
[1724241998550,20.4865,141.72,141.66,6.2829]
[1724241998858,20.4872,141.7,141.65,16.0165]
[1724241999551,13.43,141.7,141.65,16.0165]
[1724242000225,13.43,141.7,141.66,0.12549]
[1724242010249,20.4872,141.7,141.66,0.12549]
[1724242010725,20.4872,141.7,141.65,16.0165]
[1724242011463,20.4872,141.7,141.66,0.12549]
[1724242011464,13.43,141.7,141.66,0.12549]
[1724242011758,7.0568,141.71,141.66,0.12549]
[1724242015036,7.0572,141.7,141.66,0.12549]
[1724242016969,20.4872,141.7,141.66,0.12549]
[1724242017141,13.43,141.7,141.65,16.0165]
[1724242017338,13.43,141.68,141.65,16.0165]
[1724242018959,45.0,141.73,141.62,16.658]
[1724242018960,13.43,141.66,141.62,16.658]
[1724242019167,20.4895,141.66,141.62,16.658]
[1724242019969,13.43,141.66,141.62,16.658]
[1724242021068,7.0587,141.67,141.62,16.658]
[1724242022139,13.43,141.68,141.63,0.25098]
[1724242022140,7.0582,141.68,141.63,0.25098]
[1724242022339,20.0,141.67,141.63,0.25098]
[1724242026080,20.0,141.68,141.63,1.6629236]
[1724242026372,20.0,141.68,141.63,0.25098]
[1724242026578,33.43,141.68,141.63,0.25098]
[1724242027147,40.4882,141.68,141.63,0.25098]
[1724242027456,7.0587,141.67,141.63,0.12549]
[1724242027663,7.0587,141.67,141.62,16.658]
[1724242027856,20.4887,141.67,141.62,16.658]
[1724242030662,20.4887,141.67,141.62,16.658]
[1724242032083,13.43,141.67,141.62,16.658]
[1724242032286,13.43,141.67,141.63,0.12549]
[1724242034297,20.4888,141.67,141.63,0.12549]
[1724242034491,20.4888,141.67,141.62,16.658]
[1724242035093,7.0593,141.66,141.62,16.658]
[1724242035303,13.43,141.63,141.59,15.6602]
[1724242035468,13.43,141.61,141.59,15.6602]
[1724242035669,13.43,141.61,141.55,22.2448]
[1724242036868,20.4908,141.63,141.56,0.25098]
[1724242037072,20.0,141.62,141.56,0.25098]
[1724242038070,20.0,141.62,141.56,45.25098]
[1724242038400,20.0,141.62,141.57,1.41244257]
[1724242038570,20.0,141.62,141.58,0.25098]
[1724242039268,20.0,141.62,141.57,0.25098]
[1724242039497,13.43,141.61,141.57,0.25098]
[1724242039689,13.43,141.61,141.56,0.25098]
[1724242042272,20.0,141.62,141.56,1.66353429]
[1724242042881,20.0,141.62,141.56,66.66353429]
[1724242044289,20.0,141.62,141.56,0.25098]
[1724242044876,19.56373885,141.61,141.56,0.25098]
[1724242045092,13.43,141.61,141.56,0.25098]
[1724242052195,20.4917,141.61,141.56,0.25098]
[1724242052508,13.43,141.59,141.55,15.6602]
[1724242053112,20.4929,141.59,141.55,15.6602]
[1724242053481,13.43,141.57,141.51,22.4319]
[1724242054809,13.43,141.57,141.52,0.25098]
[1724242055413,20.4937,141.57,141.51,22.4319]
[1724242055715,13.43,141.55,141.51,16.026]
[1724242056421,13.43,141.53,141.48,6.13160247]
[1724242058393,13.43,141.53,141.49,0.12549]
[1724242059113,13.43,141.53,141.49,0.25098]
[1724242062924,13.43,141.53,141.49,0.12549]
[1724242065219,20.4947,141.55,141.49,0.25098]
[1724242065427,27.0651,141.54,141.49,0.25098]
[1724242066600,27.0651,141.54,141.49,0.12549]
[1724242066601,13.43,141.53,141.49,0.12549]
[1724242066797,20.4957,141.53,141.48,0.31288247]
[1724242067220,13.43,141.53,141.48,0.31288247]
[1724242071638,20.4959,141.53,141.48,0.06190247]
[1724242073631,13.43,141.53,141.48,0.06190247]
[1724242073834,13.43,141.53,141.48,0.18739247]
[1724242074041,7.0652,141.54,141.48,0.18739247]
[1724242079350,7.0646,141.55,141.48,0.18739247]
[1724242079531,20.0,141.54,141.49,0.12549]
[1724242079714,20.0,141.54,141.49,0.25098]
[1724242083049,13.43,141.56,141.49,0.25098]
[1724242083259,20.0,141.55,141.49,0.25098]
[1724242084119,13.43,141.54,141.49,0.25098]
[1724242084745,13.43,141.54,141.49,0.12549]
[1724242084929,20.4951,141.54,141.49,0.12549]
[1724242085132,20.4951,141.54,141.48,6.38780247]
[1724242086044,20.0,141.55,141.48,0.06190247]
[1724242086045,13.43,141.52,141.48,0.06190247]
[1724242091535,7.0657,141.53,141.48,0.06190247]
[1724242091536,7.0652,141.54,141.48,0.06190247]
[1724242091734,39.56818533,141.53,141.48,0.31288247]
[1724242091933,33.43,141.53,141.48,0.31288247]
[1724242092366,6.13818602,141.52,141.48,0.31288247]
[1724242092550,33.43,141.53,141.48,0.31288247]
[1724242093734,6.13802217,141.52,141.48,0.31288247]
[1724242094054,33.43,141.53,141.48,0.31288247]
[1724242094255,6.13821566,141.52,141.48,0.31288247]
[1724242094549,6.13821566,141.51,141.48,0.31288247]
[1724242094754,33.43,141.53,141.48,0.18739247]
[1724242094955,6.13818602,141.52,141.48,0.18739247]
[1724242095138,6.13818602,141.51,141.48,0.18739247]
[1724242095339,33.43,141.53,141.48,0.18739247]
[1724242095545,6.13815332,141.52,141.48,0.18739247]
[1724242095757,6.13815332,141.51,141.48,0.18739247]
[1724242095957,40.4956,141.53,141.48,0.18739247]
[1724242096162,6.13815332,141.52,141.48,0.18739247]
[1724242096369,6.13815332,141.51,141.48,0.18739247]
[1724242096534,6.13818671,141.51,141.48,0.18739247]
[1724242096735,6.13818671,141.5,141.48,0.18739247]
[1724242096934,40.4956,141.53,141.48,0.18739247]
[1724242097134,6.13818602,141.52,141.48,0.18739247]
[1724242097366,6.13818602,141.51,141.48,0.18739247]
[1724242097662,6.13818602,141.5,141.48,0.18739247]
[1724242097837,40.4956,141.53,141.48,0.18739247]
[1724242098036,6.13815194,141.52,141.48,0.18739247]
[1724242098348,6.13815194,141.51,141.48,0.18739247]
[1724242098545,6.13815194,141.5,141.48,0.18739247]
[1724242098751,40.4956,141.53,141.48,0.18739247]
[1724242098948,6.13818602,141.52,141.48,0.18739247]
[1724242099147,6.13818602,141.51,141.48,0.18739247]
[1724242099363,6.1381874,141.5,141.48,0.18739247]
[1724242099660,13.43,141.51,141.48,0.06190247]
[1724242100359,6.13821806,141.5,141.48,0.06190247]
[1724242100576,6.13821806,141.49,141.48,0.06190247]
[1724242100771,13.43,141.51,141.48,0.06190247]
[1724242100953,6.13821806,141.5,141.48,0.06190247]
[1724242101162,6.13821806,141.49,141.48,0.06190247]
[1724242103455,6.13818974,141.49,141.48,0.06190247]
[1724242106867,6.13822382,141.49,141.48,0.06190247]
[1724242108584,6.13817733,141.49,141.48,0.06190247]
[1724242110286,6.13817733,141.49,141.48,0.31288247]
[1724242110582,6.13822368,141.49,141.48,0.31288247]
[1724242114893,6.13811854,141.49,141.48,0.31288247]
[1724242115193,6.13811854,141.49,141.48,7.38098247]
[1724242117184,6.13811854,141.49,141.48,0.31288247]
[1724242119887,6.13811854,141.49,141.48,1.72631341]
[1724242120191,6.13811854,141.49,141.48,0.31288247]
[1724242120572,20.495,141.55,141.48,0.31288247]
[1724242120782,26.13757337,141.54,141.48,0.31288247]
[1724242120960,6.13757337,141.53,141.48,0.31288247]
[1724242121165,20.0,141.54,141.48,0.31288247]
[1724242121380,6.13756993,141.53,141.48,0.31288247]
[1724242121701,6.13756993,141.52,141.48,0.31288247]
[1724242121870,6.13756993,141.51,141.48,7.38098247]
[1724242122076,6.13756993,141.5,141.48,8.79425001]
[1724242122289,6.13756993,141.49,141.48,0.31288247]
[1724242123979,6.13757337,141.49,141.48,0.31288247]
[1724242124967,6.13757337,141.49,141.48,1.7261955]
[1724242126494,6.13757337,141.49,141.48,0.31288247]
[1724242126997,4.0879401,141.49,141.48,0.31288247]
[1724242127487,6.1375732,141.49,141.48,0.31288247]
[1724242127662,20.0,141.54,141.48,0.31288247]
[1724242130596,27.0652,141.54,141.48,0.31288247]
[1724242131377,20.0,141.54,141.48,0.31288247]
[1724242132092,24.7651681,141.58,141.5,20.0]
[1724242132400,43.1933,141.59,141.51,1.66397192]
[1724242132572,43.1933,141.59,141.52,1.41297351]
[1724242132573,29.7633,141.59,141.52,1.41297351]
[1724242132773,43.1933,141.59,141.53,0.25098]
[1724242133475,20.0,141.58,141.53,0.25098]
[1724242135980,20.0,141.58,141.52,0.25098]
[1724242137709,33.43,141.58,141.52,0.25098]
[1724242138307,20.4923,141.6,141.52,0.25098]
[1724242138504,20.0,141.59,141.52,1.66391326]
[1724242139009,27.0627,141.59,141.52,0.25098]
[1724242139911,27.0627,141.59,141.52,1.66391367]
[1724242140613,27.0627,141.59,141.52,46.66391367]
[1724242141396,27.0627,141.59,141.52,45.25098]
[1724242142108,20.0,141.59,141.52,52.31698]
[1724242151999,20.0,141.59,141.52,62.91598]
[1724242152230,20.0,141.6,141.52,62.91598]
[1724242153130,27.0622,141.6,141.52,69.98188]
[1724242154435,27.0622,141.6,141.53,6.6087]
[1724242154733,27.0622,141.6,141.54,0.25098]
[1724242155428,20.0,141.6,141.54,1.66381902]
[1724242156107,20.0,141.6,141.55,16.2366]
[1724242156312,20.0,141.6,141.56,0.12549]
[1724242156729,20.0,141.61,141.56,0.12549]
[1724242160229,27.0616,141.61,141.56,0.12549]
[1724242175867,27.0616,141.61,141.56,0.25098]
[1724242178778,20.0,141.61,141.56,0.25098]
[1724242180975,20.0,141.61,141.56,1.66361182]
[1724242181185,20.0,141.62,141.56,1.66361182]
[1724242183374,20.0,141.62,141.57,6.1814]
[1724242183583,20.0,141.63,141.58,1.66345205]
[1724242185490,20.0,141.63,141.59,15.9903]
[1724242187174,20.0,141.63,141.6,0.25098]
[1724242188496,20.0,141.63,141.6,0.12549]
[1724242188677,20.0,141.63,141.59,15.9903]
[1724242189605,20.0,141.63,141.6,0.25098]
[1724242189777,20.0,141.65,141.6,0.25098]
[1724242190501,27.0599,141.65,141.6,0.25098]
[1724242192120,13.43,141.64,141.6,0.25098]
[1724242192288,20.0,141.63,141.6,0.25098]
[1724242192809,20.0,141.63,141.6,0.12549]
[1724242192977,27.0607,141.63,141.59,15.9903]
[1724242196613,20.0,141.63,141.6,0.12549]
[1724242201281,20.0,141.63,141.56,15.7711]
[1724242201282,7.0621,141.6,141.56,15.7711]
[1724242201506,13.43,141.59,141.56,15.7711]
[1724242202212,20.4921,141.6,141.56,15.7711]
[1724242203292,7.0617,141.61,141.56,15.7711]
[1724242203493,20.0,141.6,141.57,0.12549]
[1724242203994,20.0,141.6,141.57,0.25098]
[1724242204191,20.0,141.61,141.57,0.12549]
[1724242204593,20.0,141.61,141.57,0.25098]
[1724242209121,20.0,141.61,141.56,15.7711]
[1724242209122,27.0617,141.61,141.56,15.7711]
[1724242209425,20.4923,141.6,141.56,15.7711]
[1724242212198,20.0,141.61,141.53,6.6445]
[1724242212199,13.43,141.58,141.53,6.6445]
[1724242212397,20.4933,141.58,141.53,6.6445]
[1724242214597,7.0628,141.59,141.54,0.25098]
[1724242214801,20.0,141.58,141.54,0.25098]
[1724242216902,20.0,141.59,141.54,0.25098]
[1724242219905,33.43,141.59,141.54,0.25098]
[1724242222333,13.43,141.59,141.54,0.25098]
[1724242222915,20.4928,141.59,141.54,0.25098]
[1724242223129,7.0632,141.58,141.53,6.6445]
[1724242228437,7.0636,141.57,141.53,6.6445]
[1724242229334,7.0633,141.58,141.53,6.6445]
[1724242229637,7.0645,141.56,141.52,16.3551]
[1724242229840,13.43,141.57,141.52,16.3551]
[1724242230139,20.4947,141.55,141.52,16.3551]
[1724242233337,13.43,141.55,141.52,16.3551]
[1724242233637,20.4948,141.55,141.52,16.3551]
[1724242233844,20.4948,141.55,141.5,6.5685]
[1724242234329,20.4959,141.53,141.49,16.6605]
[1724242235120,13.43,141.51,141.49,16.6605]
[1724242236144,20.4959,141.53,141.49,16.6605]
[1724242243369,13.43,141.53,141.49,16.6605]
[1724242243670,7.0653,141.54,141.49,16.6605]
[1724242245251,20.4947,141.55,141.5,1.41335477]
[1724242245450,20.0,141.54,141.49,16.6605]
[1724242245663,20.0,141.54,141.5,0.25098]
[1724242245851,20.0,141.54,141.5,0.12549]
[1724242246053,20.0,141.54,141.49,16.6605]
[1724242246880,27.0651,141.54,141.49,16.6605]
[1724242248181,20.4957,141.53,141.49,16.6605]
[1724242249258,7.0662,141.52,141.49,16.6605]
[1724242254319,13.43,141.51,141.48,0.06190247]
[1724242254497,20.4966,141.51,141.48,0.06190247]
[1724242255103,7.0671,141.5,141.48,0.06190247]
[1724242256017,20.4968,141.51,141.48,0.06190247]
[1724242257423,20.4976,141.49,141.48,0.06190247]
[1724242258609,85.4976,141.49,141.48,0.06190247]
[1724242260130,24.7401,141.47,141.46,0.3564238]
[1724242260333,40.4986,141.47,141.46,0.3564238]
[1724242261235,85.4986,141.47,141.46,0.3564238]
[1724242262107,85.62409,141.47,141.46,0.3564238]
[1724242262309,7.0705,141.44,141.42,142.58372224]
[1724242262510,20.5006,141.43,141.42,142.58372224]
[1724242263641,20.5002,141.44,141.42,142.58372224]
[1724242264211,7.0697,141.45,141.42,142.58372224]
[1724242264932,20.4991,141.46,141.42,142.58372224]
[1724242265306,20.0,141.45,141.42,142.58372224]
[1724242267426,20.5004,141.44,141.42,142.58372224]
[1724242268845,20.0,141.45,141.42,142.58372224]
[1724242269851,27.0697,141.45,141.42,142.58372224]
[1724242271349,13.43,141.44,141.42,142.58372224]
[1724242273235,20.5002,141.44,141.42,142.58372224]
[1724242277071,7.0702,141.44,141.42,142.58372224]
[1724242277271,13.43,141.43,141.42,142.58372224]
[1724242278456,7.0702,141.44,141.42,142.58372224]
[1724242279335,33.43,141.45,141.42,142.58372224]
[1724242279336,40.4999,141.45,141.42,142.58372224]
[1724242283350,33.43,141.45,141.42,142.58372224]
[1724242283850,40.4996,141.45,141.42,142.58372224]
[1724242284276,7.0703,141.44,141.42,142.58372224]
[1724242285580,20.5006,141.43,141.42,142.58372224]
[1724242288477,13.43,141.43,141.42,142.58372224]
[1724242290482,7.0703,141.44,141.42,142.58372224]
[1724242290684,20.5003,141.44,141.42,142.58372224]
[1724242293277,20.0,141.45,141.42,142.58372224]
[1724242293575,20.4997,141.45,141.42,142.58372224]
[1724242293783,20.0,141.44,141.42,142.58372224]
[1724242314901,27.0701,141.44,141.42,142.58372224]
[1724242318383,20.5006,141.43,141.42,142.58372224]
[1724242318719,40.5006,141.43,141.42,142.58372224]
[1724242324709,20.0,141.43,141.42,142.58372224]
[1724242324888,33.43,141.43,141.42,142.58372224]
[1724242325897,20.0,141.43,141.42,142.58372224]
[1724242328215,7.0702,141.44,141.42,142.58372224]
[1724242328389,20.0,141.43,141.42,142.58372224]
[1724242330118,20.4996,141.45,141.42,142.58372224]
[1724242330320,20.0,141.44,141.42,142.58372224]
[1724242331709,394.8683,141.48,141.42,158.13522224]
[1724242331896,401.23,141.48,141.43,1.41399594]
[1724242332091,408.2981,141.48,141.43,1.41399594]
[1724242332702,387.8,141.48,141.43,46.41399594]
[1724242333084,387.8,141.48,141.44,0.12549]
[1724242333308,20.0,141.47,141.44,0.12549]
[1724242340319,33.43,141.47,141.43,45.0]
[1724242340529,33.43,141.47,141.42,158.13522224]
[1724242342193,20.0,141.47,141.43,45.12549]
[1724242343712,20.0,141.47,141.42,158.13522224]
[1724242344297,27.0686,141.47,141.42,158.13522224]
[1724242346229,7.0683,141.48,141.42,158.13522224]
[1724242346413,7.0683,141.48,141.43,0.12549]
[1724242347401,20.4978,141.49,141.43,1.53943205]
[1724242347716,20.0,141.48,141.43,46.53943205]
[1724242350204,6.5987,141.52,141.44,0.12549]
[1724242350407,27.0668,141.51,141.44,0.12549]
[1724242352720,20.4972,141.5,141.44,0.12549]
[1724242352919,20.0,141.49,141.44,0.12549]
[1724242354645,27.0677,141.49,141.43,45.12549]
[1724242354853,13.43,141.48,141.43,45.12549]
[1724242356463,27.0677,141.49,141.44,0.12549]
[1724242361256,20.0,141.49,141.44,0.12549]
[1724242365575,27.0677,141.49,141.44,0.12549]
[1724242368265,20.4982,141.48,141.43,45.12549]
[1724242368652,7.0687,141.47,141.42,158.13522224]
[1724242368958,7.07,141.45,141.42,142.58372224]
[1724242369666,13.43,141.44,141.42,142.58372224]
[1724242370243,20.0,141.43,141.42,142.58372224]
[1724242370464,27.0706,141.43,141.42,142.58372224]
[1724242374587,20.0,141.43,141.42,142.58372224]
[1724242377763,20.4997,141.45,141.42,142.58372224]
[1724242377963,20.0,141.44,141.42,142.58372224]
[1724242378592,7.0687,141.47,141.42,142.58372224]
[1724242380181,20.0,141.46,141.42,142.58372224]
[1724242380375,20.0,141.47,141.42,142.58372224]
[1724242381478,20.0,141.47,141.43,1.41399054]
[1724242382090,20.0,141.47,141.42,142.58372224]
[1724242382893,20.0,141.47,141.43,1.41397062]
[1724242383097,20.0,141.47,141.43,61.80267062]
[1724242383273,7.0677,141.49,141.43,61.80267062]
[1724242383476,7.0671,141.5,141.44,0.25098]
[1724242383686,20.4971,141.5,141.44,0.25098]
[1724242384897,20.0,141.49,141.44,0.25098]
[1724242387005,27.0676,141.49,141.44,0.25098]
[1724242387592,13.43,141.48,141.44,0.12549]
[1724242387806,13.43,141.48,141.43,60.3887]
[1724242388293,13.43,141.48,141.43,15.3887]